fUSD/lending_fUSD_20250506
["ID","MTS","AMOUNT","RATE_DAILY","PERIOD"]
[360048605,1746519037711,-4709.90879101,0.00019675,2]
[360048606,1746519037873,-6117.42694455,0.00019675,2]
[360048607,1746519037930,-1182.79697588,0.00019675,2]
[360048608,1746519037942,-255.44850337,0.00019675,2]
[360048610,1746519039888,-18065.28522637,0.00019675,2]
[360048611,1746519039952,-9891.64853047,0.00019675,2]
[360048612,1746519039962,-323.627792,0.00019852,2]
[360048613,1746519039971,-314.74553,0.00019852,2]
[360048614,1746519039980,-469.935786,0.00019852,2]
[360048615,1746519039990,-207.4,0.00019887,2]
[360048616,1746519039999,-850.0,0.00019897,2]
[360048617,1746519040008,-384.42945126,0.00019898,2]
[360048618,1746519040018,-384.42945124,0.00019898,2]
[360048619,1746519040027,-384.42945124,0.00019898,2]
[360048620,1746519040036,-384.42945124,0.00019899,2]
[360048621,1746519040045,-384.42945124,0.00019899,2]
[360048622,1746519040055,-500.0,0.00019899,2]
[360048623,1746519040064,-500.0,0.00019899,2]
[360048624,1746519040073,-500.0,0.00019899,2]
[360048625,1746519040082,-500.0,0.00019899,2]
[360048626,1746519040091,-500.0,0.00019899,2]
[360048627,1746519040101,-500.0,0.00019899,2]
[360048628,1746519040110,-500.0,0.00019899,2]
[360048629,1746519040119,-407.00107531,0.00019899,2]
[360048630,1746519040129,-384.42945124,0.00019899,2]
[360048631,1746519040138,-384.42945124,0.00019899,2]
[360048632,1746519040147,-384.42945124,0.000199,2]
[360048633,1746519040157,-384.42945124,0.000199,2]
[360048634,1746519040168,-221.9371849,0.000199,2]
[360048635,1746519040177,-384.42945124,0.000199,2]
[360048636,1746519040187,-82355.48853132,0.000199,2]
[360048637,1746519040196,-9684.25987076,0.000199,2]
[360048638,1746519040206,-266.698,0.00019967,2]
[360048639,1746519040214,-153.0,0.00019967,2]
[360048640,1746519040223,-2268.451,0.00019967,2]
[360048641,1746519040233,-323.627792,0.00019972,2]
[360048642,1746519040245,-314.74553,0.00019972,2]
[360048643,1746519040254,-469.935786,0.00019972,2]
[360048644,1746519040263,-500.0,0.00019973,2]
[360048645,1746519040272,-500.0,0.00019973,2]
[360048646,1746519040282,-415.5156332,0.00019986,2]
[360048647,1746519040292,-1352.6098775,0.00019986,2]
[360048648,1746519040302,-13709.7655289,0.00019986,2]
[360048649,1746519040311,-151.0,0.00019987,2]
[360048650,1746519040323,-668.65185757,0.00019987,2]
[360048651,1746519040333,-1032.27,0.00019996,2]
[360048652,1746519040343,-332.82851744,0.00019998,2]
[360048653,1746519040352,-579.45804674,0.00019998,2]
[360048654,1746519040362,-450.0,0.00019998,2]
[360048655,1746519040371,-450.0,0.00019998,2]
[360048656,1746519040380,-323.627792,0.00019998,2]
[360048657,1746519040390,-314.74553,0.00019998,2]
[360048658,1746519040399,-450.0,0.00019998,2]
[360048659,1746519040409,-482.56261821,0.00019998,2]
[360048660,1746519040419,-450.0,0.00019998,2]
[360048661,1746519040429,-450.0,0.00019998,2]
[360048662,1746519040437,-450.0,0.00019998,2]
[360048663,1746519040447,-505.92,0.00019998,2]
[360048664,1746519040456,-450.0,0.00019998,2]
[360048665,1746519040465,-340.18555388,0.00019998,2]
[360048666,1746519040475,-450.0,0.00019998,2]
[360048667,1746519040485,-450.0,0.00019998,2]
[360048668,1746519040494,-450.0,0.00019998,2]
[360048669,1746519040503,-451.35622373,0.00019998,2]
[360048670,1746519040513,-450.0,0.00019998,2]
[360048671,1746519040523,-450.0,0.00019998,2]
[360048672,1746519040533,-451.91817862,0.00019998,2]
[360048673,1746519040543,-450.0,0.00019998,2]
[360048674,1746519040711,-254.03558385,0.00019998,2]
[360048675,1746519040720,-450.0,0.00019998,2]
[360048676,1746519040730,-489.65661438,0.00019998,2]
[360048677,1746519040740,-517.41667921,0.00019998,2]
[360048678,1746519040749,-562.75127756,0.00019998,2]
[360048680,1746519040759,-450.0,0.00019998,2]
[360048682,1746519040768,-450.0,0.00019998,2]
[360048683,1746519040777,-555.18,0.00019998,2]
[360048684,1746519040787,-488.89743205,0.00019998,2]
[360048685,1746519040796,-481.97935146,0.00019998,2]
[360048686,1746519040806,-494.47,0.00019998,2]
[360048687,1746519040816,-450.0,0.00019998,2]
[360048688,1746519040826,-450.0,0.00019998,2]
[360048689,1746519040835,-450.0,0.00019998,2]
[360048690,1746519040845,-480.06568481,0.00019998,2]
[360048691,1746519040854,-450.0,0.00019998,2]
[360048692,1746519040864,-450.0,0.00019998,2]
[360048693,1746519040874,-450.0,0.00019998,2]
[360048694,1746519040883,-450.0,0.00019998,2]
[360048695,1746519040892,-510.12060902,0.00019998,2]
[360048696,1746519040901,-510.23350673,0.00019998,2]
[360048697,1746519040911,-450.0,0.00019998,2]
[360048698,1746519040921,-450.0,0.00019998,2]
[360048699,1746519040930,-450.0,0.00019998,2]
[360048700,1746519040939,-450.0,0.00019998,2]
[360048701,1746519040949,-470.83,0.00019998,2]
[360048702,1746519040958,-537.68616306,0.00019998,2]
[360048703,1746519040967,-450.0,0.00019998,2]
[360048704,1746519040976,-450.0,0.00019998,2]
[360048705,1746519040986,-450.0,0.00019998,2]
[360048706,1746519040996,-450.0,0.00019998,2]
[360048707,1746519041006,-450.0,0.00019998,2]
[360048708,1746519041015,-450.0,0.00019998,2]
[360048709,1746519041024,-450.7,0.00019998,2]
[360048710,1746519041034,-450.0,0.00019998,2]
[360048711,1746519041043,-272.48487987,0.00019998,2]
[360048712,1746519041052,-450.0,0.00019998,2]
[360048713,1746519041061,-450.0,0.00019998,2]
[360048714,1746519041071,-450.0,0.00019998,2]
[360048715,1746519041080,-450.0,0.00019998,2]
[360048716,1746519041089,-450.0,0.00019998,2]
[360048717,1746519041098,-450.0,0.00019998,2]
[360048718,1746519041107,-450.0,0.00019998,2]
[360048719,1746519041116,-495.40668662,0.00019998,2]
[360048720,1746519041126,-450.0,0.00019998,2]
[360048721,1746519041136,-450.0,0.00019998,2]
[360048722,1746519041145,-450.0,0.00019998,2]
[360048723,1746519041154,-450.0,0.00019998,2]
[360048724,1746519041163,-450.0,0.00019998,2]
[360048725,1746519041173,-450.0,0.00019998,2]
[360048726,1746519041182,-450.0,0.00019998,2]
[360048727,1746519041191,-450.0,0.00019998,2]
[360048728,1746519041200,-450.0,0.00019998,2]
[360048729,1746519041210,-450.0,0.00019998,2]
[360048730,1746519041219,-183.23719913,0.00019998,2]
[360048731,1746519041228,-450.0,0.00019998,2]
[360048732,1746519041238,-389.58235253,0.00019998,2]
[360048733,1746519041251,-450.0,0.00019998,2]
[360048734,1746519041260,-450.0,0.00019998,2]
[360048735,1746519041269,-450.0,0.00019998,2]
[360048736,1746519041279,-450.0,0.00019998,2]
[360048737,1746519041288,-450.0,0.00019998,2]
[360048738,1746519041297,-549.1642505,0.00019998,2]
[360048739,1746519041307,-450.0,0.00019998,2]
[360048740,1746519041316,-450.0,0.00019998,2]
[360048741,1746519041326,-278.13311498,0.00019998,2]
[360048742,1746519041336,-3366.87,0.00019998,2]
[360048743,1746519041345,-450.0,0.00019998,2]
[360048744,1746519041354,-450.0,0.00019998,2]
[360048745,1746519041364,-450.0,0.00019998,2]
[360048746,1746519041373,-450.0,0.00019998,2]
[360048747,1746519041382,-450.0,0.00019998,2]
[360048748,1746519041391,-450.0,0.00019998,2]
[360048749,1746519041400,-450.0,0.00019998,2]
[360048750,1746519041410,-450.0,0.00019998,2]
[360048751,1746519041419,-450.0,0.00019998,2]
[360048752,1746519041429,-558.00043439,0.00019998,2]
[360048753,1746519041438,-527.69362067,0.00019998,2]
[360048754,1746519041447,-450.0,0.00019998,2]
[360048755,1746519041456,-450.0,0.00019998,2]
[360048756,1746519041465,-450.0,0.00019998,2]
[360048757,1746519041475,-450.0,0.00019998,2]
[360048758,1746519041484,-450.0,0.00019998,2]
[360048759,1746519041494,-450.0,0.00019998,2]
[360048760,1746519041503,-469.935786,0.00019998,2]
[360048761,1746519041512,-450.0,0.00019998,2]
[360048762,1746519041521,-450.0,0.00019998,2]
[360048763,1746519041530,-450.0,0.00019998,2]
[360048764,1746519041539,-237.11061039,0.00019998,2]
[360048765,1746519041549,-450.0,0.00019998,2]
[360048766,1746519041558,-518.9690275,0.00019998,2]
[360048767,1746519041567,-450.0,0.00019998,2]
[360048768,1746519041576,-351.47631248,0.00019998,2]
[360048769,1746519041585,-450.0,0.00019998,2]
[360048770,1746519041595,-450.0,0.00019998,2]
[360048771,1746519041604,-450.0,0.00019998,2]
[360048772,1746519041614,-450.0,0.00019998,2]
[360048773,1746519041623,-450.0,0.00019998,2]
[360048774,1746519041632,-270.37228676,0.00019998,2]
[360048775,1746519041642,-450.0,0.00019998,2]
[360048776,1746519041651,-450.0,0.00019998,2]
[360048777,1746519041660,-450.0,0.00019998,2]
[360048778,1746519041670,-450.0,0.00019998,2]
[360048779,1746519041680,-529.25628653,0.00019998,2]
[360048780,1746519041690,-450.0,0.00019998,2]
[360048781,1746519041699,-450.0,0.00019998,2]
[360048782,1746519041708,-450.0,0.00019998,2]
[360048783,1746519041718,-450.0,0.00019998,2]
[360048784,1746519041727,-450.0,0.00019998,2]
[360048785,1746519041736,-450.0,0.00019998,2]
[360048786,1746519041746,-450.0,0.00019998,2]
[360048787,1746519041755,-450.0,0.00019998,2]
[360048788,1746519041764,-489.73189223,0.00019998,2]
[360048789,1746519041773,-450.0,0.00019998,2]
[360048790,1746519041783,-450.0,0.00019998,2]
[360048791,1746519041792,-163.5653244,0.00019998,2]
[360048792,1746519041801,-450.0,0.00019998,2]
[360048793,1746519041810,-311.69836215,0.00019998,2]
[360048794,1746519041819,-450.0,0.00019998,2]
[360048795,1746519041829,-450.0,0.00019998,2]
[360048796,1746519041838,-300.0,0.00019999,2]
[360048797,1746519041847,-379.57941728,0.00019999,2]
[360048798,1746519041856,-170.28,0.00019999,2]
[360048799,1746519041865,-450.0,0.00019999,2]
[360048800,1746519041874,-450.0,0.00019999,2]
[360048801,1746519041883,-456.31,0.00019999,2]
[360048802,1746519041892,-450.0,0.00019999,2]
[360048803,1746519041901,-493.75672827,0.00019999,2]
[360048804,1746519041910,-569.12959001,0.00019999,2]
[360048805,1746519041921,-213.55,0.00019999,2]
[360048806,1746519041930,-491.30414652,0.00019999,2]
[360048807,1746519041939,-450.0,0.00019999,2]
[360048808,1746519041948,-500.0,0.00019999,2]
[360048809,1746519041957,-500.0,0.00019999,2]
[360048810,1746519041966,-250.50317372,0.00019999,2]
[360048811,1746519041975,-157.53,0.00019999,2]
[360048812,1746519041984,-450.0,0.00019999,2]
[360048813,1746519041994,-450.0,0.00019999,2]
[360048814,1746519042003,-450.0,0.00019999,2]
[360048815,1746519042012,-195.07,0.00019999,2]
[360048816,1746519042022,-450.0,0.00019999,2]
[360048817,1746519042032,-413.55,0.00019999,2]
[360048818,1746519042041,-450.0,0.00019999,2]
[360048819,1746519042050,-450.0,0.00019999,2]
[360048820,1746519042059,-450.0,0.00019999,2]
[360048821,1746519042069,-487.04203067,0.00019999,2]
[360048822,1746519042078,-450.0,0.00019999,2]
[360048823,1746519042087,-450.0,0.00019999,2]
[360048824,1746519042096,-450.0,0.00019999,2]
[360048825,1746519042105,-450.0,0.00019999,2]
[360048826,1746519042114,-450.0,0.00019999,2]
[360048827,1746519042123,-450.0,0.00019999,2]
[360048828,1746519042133,-450.0,0.00019999,2]
[360048829,1746519042142,-398.73,0.00019999,2]
[360048830,1746519042152,-450.0,0.00019999,2]
[360048831,1746519042161,-450.0,0.00019999,2]
[360048832,1746519042172,-450.0,0.00019999,2]
[360048833,1746519042182,-450.0,0.00019999,2]
[360048834,1746519042191,-450.0,0.00019999,2]
[360048835,1746519042200,-450.0,0.00019999,2]
[360048836,1746519042210,-553.93,0.00019999,2]
[360048837,1746519042218,-3310.04,0.00019999,2]
[360048838,1746519042227,-3310.04,0.00019999,2]
[360048839,1746519042236,-3310.04,0.00019999,2]
[360048840,1746519042249,-3310.04,0.00019999,2]
[360048841,1746519042258,-3310.04,0.00019999,2]
[360048842,1746519042268,-3310.04,0.00019999,2]
[360048843,1746519042277,-3310.04,0.00019999,2]
[360048844,1746519042286,-3310.04,0.00019999,2]
[360048845,1746519042296,-3310.04,0.00019999,2]
[360048846,1746519042305,-3310.04,0.00019999,2]
[360048847,1746519042315,-3310.04,0.00019999,2]
[360048848,1746519042324,-3310.04,0.00019999,2]
[360048849,1746519042334,-3310.04,0.00019999,2]
[360048850,1746519042343,-3310.04,0.00019999,2]
[360048851,1746519042353,-3310.04,0.00019999,2]
[360048852,1746519042362,-3310.04,0.00019999,2]
[360048853,1746519042372,-3310.04,0.00019999,2]
[360048854,1746519042381,-3310.04,0.00019999,2]
[360048855,1746519042391,-3310.04,0.00019999,2]
[360048856,1746519042400,-3310.04,0.00019999,2]
[360048857,1746519042410,-3310.04,0.00019999,2]
[360048858,1746519042421,-3310.04,0.00019999,2]
[360048859,1746519042431,-3310.04,0.00019999,2]
[360048860,1746519042440,-3310.19,0.00019999,2]
[360048861,1746519042449,-450.0,0.00019999,2]
[360048862,1746519042459,-450.0,0.00019999,2]
[360048863,1746519042469,-450.0,0.00019999,2]
[360048864,1746519042478,-460.81,0.00019999,2]
[360048865,1746519042488,-450.0,0.00019999,2]
[360048866,1746519042498,-450.0,0.00019999,2]
[360048867,1746519042508,-450.0,0.00019999,2]
[360048868,1746519042517,-450.0,0.00019999,2]
[360048869,1746519042527,-450.0,0.00019999,2]
[360048870,1746519042536,-450.0,0.00019999,2]
[360048871,1746519042546,-550.27,0.00019999,2]
[360048872,1746519042555,-450.0,0.00019999,2]
[360048873,1746519042565,-450.0,0.00019999,2]
[360048874,1746519042575,-450.0,0.00019999,2]
[360048875,1746519042584,-488.8226,0.00019999,2]
[360048876,1746519042593,-734.65,0.00019999,2]
[360048877,1746519042603,-734.65,0.00019999,2]
[360048878,1746519042612,-734.65,0.00019999,2]
[360048879,1746519042622,-734.65,0.00019999,2]
[360048880,1746519042632,-734.65,0.00019999,2]
[360048881,1746519042641,-734.65,0.00019999,2]
[360048882,1746519042651,-734.65,0.00019999,2]
[360048883,1746519042660,-734.65,0.00019999,2]
[360048885,1746519042670,-734.65,0.00019999,2]
[360048886,1746519042680,-734.65,0.00019999,2]
[360048887,1746519042689,-734.65,0.00019999,2]
[360048888,1746519042699,-734.65,0.00019999,2]
[360048890,1746519042708,-450.0,0.00019999,2]
[360048891,1746519042718,-734.65,0.00019999,2]
[360048892,1746519042728,-734.65,0.00019999,2]
[360048893,1746519042738,-734.65,0.00019999,2]
[360048895,1746519042747,-734.65,0.00019999,2]
[360048897,1746519042757,-734.65,0.00019999,2]
[360048899,1746519042767,-734.65,0.00019999,2]
[360048901,1746519042777,-734.65,0.00019999,2]
[360048903,1746519042786,-734.65,0.00019999,2]
[360048905,1746519042795,-734.65,0.00019999,2]
[360048908,1746519042805,-734.65,0.00019999,2]
[360048910,1746519042814,-214.59,0.00019999,2]
[360048912,1746519042825,-734.65,0.00019999,2]
[360048914,1746519042834,-734.75,0.00019999,2]
[360048916,1746519042845,-450.0,0.00019999,2]
[360048918,1746519042854,-411.31,0.00019999,2]
[360048920,1746519042863,-450.0,0.00019999,2]
[360048922,1746519042872,-450.0,0.00019999,2]
[360048924,1746519042882,-450.0,0.00019999,2]
[360048926,1746519042892,-398.80385159,0.00019999,2]
[360048928,1746519042901,-450.0,0.00019999,2]
[360048930,1746519042910,-450.0,0.00019999,2]
[360048932,1746519042920,-450.0,0.00019999,2]
[360048934,1746519042930,-450.0,0.00019999,2]
[360048936,1746519042939,-450.0,0.00019999,2]
[360048938,1746519042948,-450.0,0.00019999,2]
[360048940,1746519042957,-450.0,0.00019999,2]
[360048942,1746519042967,-450.0,0.00019999,2]
[360048944,1746519042976,-450.0,0.00019999,2]
[360048946,1746519042985,-450.0,0.00019999,2]
[360048948,1746519042994,-450.0,0.00019999,2]
[360048950,1746519043003,-450.0,0.00019999,2]
[360048952,1746519043012,-450.0,0.00019999,2]
[360048954,1746519043021,-450.0,0.00019999,2]
[360048956,1746519043031,-450.0,0.00019999,2]
[360048957,1746519043039,-450.0,0.00019999,2]
[360048960,1746519043049,-3366.87,0.00019999,2]
[360048961,1746519043058,-467.34,0.00019999,2]
[360048963,1746519043067,-450.0,0.00019999,2]
[360048965,1746519043076,-3366.87,0.00019999,2]
[360048968,1746519043086,-356.73,0.00019999,2]
[360048970,1746519043095,-3366.87,0.00019999,2]
[360048971,1746519043104,-3366.87,0.00019999,2]
[360048972,1746519043114,-3366.87,0.00019999,2]
[360048973,1746519043123,-3366.87,0.00019999,2]
[360048974,1746519043132,-3366.87,0.00019999,2]
[360048975,1746519043142,-3366.87,0.00019999,2]
[360048976,1746519043151,-3366.87,0.00019999,2]
[360048977,1746519043160,-3366.87,0.00019999,2]
[360048978,1746519043170,-3366.87,0.00019999,2]
[360048979,1746519043179,-3366.87,0.00019999,2]
[360048981,1746519043188,-3366.87,0.00019999,2]
[360048983,1746519043197,-3366.87,0.00019999,2]
[360048985,1746519043207,-3366.87,0.00019999,2]
[360048987,1746519043216,-3366.87,0.00019999,2]
[360048988,1746519043225,-3366.87,0.00019999,2]
[360048989,1746519043235,-3366.87,0.00019999,2]
[360048990,1746519043249,-3366.87,0.00019999,2]
[360048991,1746519043258,-3366.87,0.00019999,2]
[360048993,1746519043267,-3366.87,0.00019999,2]
[360048994,1746519043277,-3366.87,0.00019999,2]
[360048996,1746519043286,-3366.9509,0.00019999,2]
[360048998,1746519043295,-450.0,0.00019999,2]
[360049001,1746519043305,-450.0,0.00019999,2]
[360049003,1746519043314,-450.0,0.00019999,2]
[360049004,1746519043324,-450.0,0.00019999,2]
[360049007,1746519043334,-580.63144996,0.00019999,2]
[360049008,1746519043343,-500.0,0.00019999,2]
[360049010,1746519043352,-682.0,0.00019999,2]
[360049012,1746519043361,-553.17600041,0.00019999,2]
[360049014,1746519043370,-450.0,0.00019999,2]
[360049016,1746519043379,-450.0,0.00019999,2]
[360049019,1746519043389,-450.0,0.00019999,2]
[360049020,1746519043398,-450.0,0.00019999,2]
[360049022,1746519043407,-538.05569978,0.00019999,2]
[360049024,1746519043416,-450.0,0.00019999,2]
[360049027,1746519043425,-410.11,0.00019999,2]
[360049030,1746519043434,-450.0,0.00019999,2]
[360049033,1746519043444,-450.0,0.00019999,2]
[360049035,1746519043453,-450.0,0.00019999,2]
[360049038,1746519043462,-450.0,0.00019999,2]
[360049041,1746519043471,-450.0,0.00019999,2]
[360049044,1746519043480,-150.0,0.00019999,2]
[360049047,1746519043489,-451.91301683,0.00019999,2]
[360049049,1746519043499,-500.0,0.00019999,2]
[360049051,1746519043508,-450.0,0.00019999,2]
[360049053,1746519043517,-450.0,0.00019999,2]
[360049055,1746519043526,-450.0,0.00019999,2]
[360049057,1746519043535,-450.0,0.00019999,2]
[360049059,1746519043545,-450.0,0.00019999,2]
[360049061,1746519043554,-450.0,0.00019999,2]
[360049063,1746519043563,-487.12,0.00019999,2]
[360049065,1746519043573,-450.0,0.00019999,2]
[360049067,1746519043582,-439.99,0.00019999,2]
[360049069,1746519043591,-487.18,0.00019999,2]
[360049071,1746519043600,-450.0,0.00019999,2]
[360049073,1746519043609,-219.45891104,0.00019999,2]
[360049075,1746519043618,-150.0,0.00019999,2]
[360049077,1746519043627,-450.0,0.00019999,2]
[360049079,1746519043636,-450.0,0.00019999,2]
[360049081,1746519043645,-507.03,0.00019999,2]
[360049083,1746519043655,-450.0,0.00019999,2]
[360049085,1746519043664,-500.0,0.00019999,2]
[360049087,1746519043674,-500.0,0.00019999,2]
[360049089,1746519043683,-500.0,0.00019999,2]
[360049091,1746519043692,-500.0,0.00019999,2]
[360049093,1746519043702,-197.99541964,0.00019999,2]
[360049095,1746519043711,-500.0,0.00019999,2]
[360049097,1746519043721,-500.0,0.00019999,2]
[360049099,1746519043730,-162.18521137,0.00019999,2]
[360049101,1746519043739,-187.19541273,0.00019999,2]
[360049103,1746519043748,-332.21487799,0.00019999,2]
[360049105,1746519043758,-187.82673636,0.00019999,2]
[360049107,1746519043767,-232.97416415,0.00019999,2]
[360049109,1746519043776,-961.0,0.0002,2]
[360049111,1746519043786,-398.29121323,0.0002,2]
[360049113,1746519043795,-29829.64633238,0.0002,2]
[360049115,1746519043804,-74654.68356372,0.0002,2]
[360049126,1746519043894,-2720.0,0.0002,2]
[360049132,1746519043943,-1000.0,0.00019898,2]
[360049134,1746519043952,-450.0,0.00019998,2]
[360049136,1746519043961,-450.0,0.00019998,2]
[360049138,1746519043970,-450.0,0.00019999,2]
[360049140,1746519043979,-450.0,0.00019999,2]
[360049142,1746519043988,-14157.34846132,0.0002,2]
[360049144,1746519043999,-1318.3450002,0.0002,2]
[360049147,1746519044016,-506.72,0.00019998,2]
[360049149,1746519044027,-56.75,0.00019998,2]
[360049151,1746519044036,-1833.69,0.0002,2]
[360049153,1746519044047,-294.87257409,0.0002,2]
[360049155,1746519044058,-5635.50451626,0.0002,2]
[360049225,1746519045605,-437.80101459,0.00019998,2]
[360049226,1746519045650,-12.19898541,0.00019998,2]
[360049227,1746519045660,-450.0,0.00019998,2]
[360049228,1746519045670,-439.70101459,0.00019998,2]
[360049229,1746519045809,-10.29898541,0.00019998,2]
[360049230,1746519045820,-450.0,0.00019999,2]
[360049231,1746519045829,-181.6,0.00019999,2]
[360049232,1746519045974,-450.0,0.00019999,2]
[360049233,1746519045985,-450.0,0.00019999,2]
[360049234,1746519045995,-450.0,0.00019999,2]
[360049235,1746519046004,-1720.1902147,0.0002,2]
[360049267,1746519047784,-1488276.40317316,0.0002,2]
[360049268,1746519047794,-5653.82584328,0.0002,2]
[360049269,1746519047803,-1913362.83081607,0.0002,2]
[360049270,1746519047812,-1030955.15156006,0.0002,2]
[360049271,1746519047822,-374352.82718503,0.0002,2]
[360049272,1746519047998,-450.0,0.00019999,2]
[360049273,1746519048007,-677.49545919,0.0002,2]
[360049274,1746519080700,152.48,0.000298,31]
[360049275,1746519080751,152.48,0.000298,31]
[360049276,1746519080815,152.48,0.000298,31]
[360049277,1746519080877,152.48,0.000298,31]
[360049278,1746519080937,152.48,0.000298,31]
[360049279,1746519081000,152.48,0.000298,31]
[360049280,1746519081067,152.48,0.000298,31]
[360049296,1746519313143,1000.0,0.00019023,2]
[360049297,1746519315018,151.29734238,0.00029986,30]
[360049301,1746519430473,-492.14128044,0.00019601,2]
[360049305,1746519442757,-251.94884345,0.00019601,2]
[360049310,1746519447900,-174.99633699,0.00019601,2]
[360049329,1746519512032,1000.0,0.0002999,30]
[360049332,1746519519914,592.84,0.00017046,2]
[360049333,1746519520130,592.84,0.0001931,2]
[360049334,1746519560317,100000.0,0.0003,30]
[360049354,1746519644667,884.372825,0.0003013,120]
[360049358,1746519684367,152.52,0.000298,31]
[360049359,1746519684423,152.52,0.000298,31]
[360049360,1746519684483,152.52,0.000298,31]
[360049361,1746519684537,152.52,0.000298,31]
[360049362,1746519684600,152.52,0.000298,31]
[360049363,1746519684683,152.52,0.000298,31]
[360049364,1746519684737,152.52,0.000298,31]
[360049409,1746519795295,-312.34771754,0.00019502,2]
[360049414,1746519800038,-339.84959979,0.00019502,2]
[360049417,1746519805772,-245.95696167,0.00019502,2]
[360049421,1746519811303,447.37,0.0003,30]
[360049425,1746519870183,672.498118,0.00019438,2]
[360049426,1746519878218,168.16094859,0.0003,30]
[360049428,1746519913876,1015.5148893,0.00018,2]
[360049429,1746519915163,500.0,0.0003,30]
[360049431,1746519942954,531.32412238,0.0003,30]
[360049437,1746520000863,151.0,0.000195,2]
[360049447,1746520053597,-193.12828262,0.00019524,2]
[360049451,1746520056997,-153.0641577,0.00019524,2]
[360049452,1746520061231,-152.70933397,0.00019524,2]
[360049482,1746520067439,346.19244,0.00019426,2]
[360049489,1746520084509,-30.98974651,0.00019524,2]
[360049490,1746520084534,-200.0,0.0001953,2]
[360049494,1746520110629,471.03,0.00018936,2]
[360049499,1746520141991,152.709334,0.00019438,2]
[360049533,1746520231759,-165.37,0.00019536,2]
[360049534,1746520231768,-250.0,0.00019563,2]
[360049535,1746520231777,-200.0,0.00019591,2]
[360049536,1746520231787,-200.0,0.000196,2]
[360049537,1746520231796,-250.0,0.00019605,2]
[360049538,1746520231805,-10782.93458665,0.00019681,2]
[360049539,1746520231816,-12170.07243745,0.00019691,2]
[360049540,1746520231827,-2196.72633254,0.00019691,2]
[360049541,1746520231838,-440.0,0.00019691,2]
[360049542,1746520231936,-1085.9649538,0.00019691,2]
[360049543,1746520231948,-272.80967872,0.00019691,2]
[360049544,1746520231959,-669.2093617,0.00019691,2]
[360049545,1746520231971,-4168.56843775,0.00019691,2]
[360049546,1746520231983,-11232.108,0.00019691,2]
[360049547,1746520232015,-272375.3566523,0.00019691,2]
[360049548,1746520232034,-3345.89090255,0.00019691,2]
[360049549,1746520232092,-4417.31673857,0.00019691,2]
[360049550,1746520232103,-636.10140926,0.00019691,2]
[360049551,1746520232114,-3582.43870301,0.00019691,2]
[360049552,1746520232146,-1302.66754437,0.00019691,2]
[360049556,1746520237718,-2450.89237849,0.00019691,2]
[360049557,1746520237825,-3586.85908103,0.00019691,2]
[360049558,1746520237836,-1421.91293233,0.00019691,2]
[360049559,1746520237933,-47982.29158587,0.00019691,2]
[360049561,1746520238098,-1866.931858,0.00019691,2]
[360049762,1746520240008,-250448.77561655,0.00019691,2]
[360049779,1746520240168,-1007.5722947,0.00019691,2]
[360049786,1746520240225,-20955.00012026,0.00019691,2]
[360049789,1746520240240,-390.75726995,0.00019691,2]